[Event "new tournament description"]
[Site "France"]
[Date "2018.12.28"]
[Round "1.1"]
[White "GOZZOLI"]
[Black "FLOUREUX"]
[Result "1-0"]
[TimeControl "15min+3sec"]
[WhiteElo "2582"]
[BlackElo "1590"]

1. d4 {[%clk 00:15:05]} {[%emt 00:00:01]} Nf6 {[%clk 00:15:04]} {[%emt
00:00:02]} 2. c4 {[%clk 00:15:02]} {[%emt 00:00:05]} g6 {[%clk 00:15:05]}
{[%emt 00:00:02]} 3. Nc3 {[%clk 00:15:02]} {[%emt 00:00:02]} Bg7 {[%clk
00:15:06]} {[%emt 00:00:03]} 4. Nf3 {[%clk 00:14:59]} {[%emt 00:00:06]} O-O
{[%clk 00:15:03]} {[%emt 00:00:06]} 5. Bg5 {[%clk 00:14:57]} {[%emt 00:00:04]}
d6 {[%clk 00:14:48]} {[%emt 00:00:19]} 6. e3 {[%clk 00:14:59]} {[%emt
00:00:01]} Nbd7 {[%clk 00:14:33]} {[%emt 00:00:17]} 7. Be2 {[%clk 00:15:01]}
{[%emt 00:00:02]} c5 {[%clk 00:14:33]} {[%emt 00:00:04]} 8. d5 {[%clk
00:15:02]} {[%emt 00:00:01]} a6 {[%clk 00:14:24]} {[%emt 00:00:12]} 9. a4
{[%clk 00:15:04]} {[%emt 00:00:01]} h6 {[%clk 00:13:17]} {[%emt 00:01:10]} 10.
Bh4 {[%clk 00:15:05]} {[%emt 00:00:01]} g5 {[%clk 00:13:07]} {[%emt 00:00:12]}
11. Bg3 {[%clk 00:15:07]} {[%emt 00:00:01]} Nh5 {[%clk 00:13:09]} {[%emt
00:00:02]} 12. Qc2 {[%clk 00:15:06]} {[%emt 00:00:04]} Ndf6 {[%clk 00:12:56]}
{[%emt 00:00:16]} 13. Nd2 {[%clk 00:15:00]} {[%emt 00:00:10]} Nxg3 {[%clk
00:12:27]} {[%emt 00:00:32]} 14. hxg3 {[%clk 00:15:01]} {[%emt 00:00:01]} Bd7
{[%clk 00:11:21]} {[%emt 00:01:09]} 15. e4 {[%clk 00:14:03]} {[%emt 00:01:00]}
e5 {[%clk 00:09:29]} {[%emt 00:01:56]} 16. Nf1 {[%clk 00:14:02]} {[%emt
00:00:03]} Rb8 {[%clk 00:08:32]} {[%emt 00:01:01]} 17. Ne3 {[%clk 00:13:58]}
{[%emt 00:00:06]} Qc8 {[%clk 00:08:19]} {[%emt 00:00:17]} 18. f3 {[%clk
00:12:51]} {[%emt 00:01:10]} Ne8 {[%clk 00:07:40]} {[%emt 00:00:42]} 19. a5
{[%clk 00:12:33]} {[%emt 00:00:20]} f5 {[%clk 00:06:55]} {[%emt 00:00:48]} 20.
exf5 {[%clk 00:12:32]} {[%emt 00:00:04]} Bxf5 {[%clk 00:06:53]} {[%emt
00:00:06]} 21. Nxf5 {[%clk 00:12:34]} {[%emt 00:00:01]} Qxf5 {[%clk 00:06:18]}
{[%emt 00:00:38]} 22. Qxf5 {[%clk 00:12:34]} {[%emt 00:00:02]} Rxf5 {[%clk
00:06:19]} {[%emt 00:00:02]} 23. Ne4 {[%clk 00:12:24]} {[%emt 00:00:12]} Kf7
{[%clk 00:05:49]} {[%emt 00:00:34]} 24. Bd3 {[%clk 00:11:59]} {[%emt 00:00:28]}
b5 {[%clk 00:05:06]} {[%emt 00:00:46]} 25. axb6 {[%clk 00:11:24]} {[%emt
00:00:37]} Rxb6 {[%clk 00:05:03]} {[%emt 00:00:06]} 26. Ra2 {[%clk 00:11:24]}
{[%emt 00:00:03]} Rb3 {[%clk 00:04:32]} {[%emt 00:00:35]} 27. Bc2 {[%clk
00:11:06]} {[%emt 00:00:20]} Rb4 {[%clk 00:04:33]} {[%emt 00:00:02]} 28. b3
{[%clk 00:11:07]} {[%emt 00:00:01]} Rb6 {[%clk 00:04:27]} {[%emt 00:00:10]} 29.
Kd2 {[%clk 00:09:55]} {[%emt 00:01:15]} g4 {[%clk 00:04:11]} {[%emt 00:00:19]}
30. fxg4 {[%clk 00:09:50]} {[%emt 00:00:07]} Rf6 {[%clk 00:03:44]} {[%emt
00:00:30]} 31. Nxf6 {[%clk 00:09:47]} {[%emt 00:00:06]} Kxf6 {[%clk 00:03:43]}
{[%emt 00:00:04]} 32. Rha1 {[%clk 00:09:40]} {[%emt 00:00:10]} Nc7 {[%clk
00:03:43]} {[%emt 00:00:03]} 33. Rf1+ {[%clk 00:09:41]} {[%emt 00:00:01]} Ke7
{[%clk 00:03:40]} {[%emt 00:00:06]} 34. Bg6 {[%clk 00:09:33]} {[%emt 00:00:11]}
Bf6 {[%clk 00:03:32]} {[%emt 00:00:10]} 35. Rf3 {[%clk 00:09:31]} {[%emt
00:00:04]} Rb8 {[%clk 00:03:21]} {[%emt 00:00:15]} 36. Kd1 {[%clk 00:09:27]}
{[%emt 00:00:07]} Rf8 {[%clk 00:03:17]} {[%emt 00:00:07]} 37. Raf2 {[%clk
00:09:27]} {[%emt 00:00:03]} Na8 {[%clk 00:02:28]} {[%emt 00:00:52]} 38. Kc2
{[%clk 00:09:26]} {[%emt 00:00:04]} Nb6 {[%clk 00:02:24]} {[%emt 00:00:06]} 39.
Kd3 {[%clk 00:09:24]} {[%emt 00:00:05]} Nd7 {[%clk 00:02:20]} {[%emt 00:00:08]}
40. Ke4 {[%clk 00:09:16]} {[%emt 00:00:11]} Rg8 {[%clk 00:02:07]} {[%emt
00:00:16]} 41. Bf5 {[%clk 00:09:17]} {[%emt 00:00:01]} Nf8 {[%clk 00:01:20]}
{[%emt 00:00:50]} 42. Ra2 {[%clk 00:09:18]} {[%emt 00:00:02]} Ng6 {[%clk
00:00:24]} {[%emt 00:00:59]} 43. Rxa6 {[%clk 00:09:11]} {[%emt 00:00:10]} Rg7
{[%clk 00:00:26]} {[%emt 00:00:02]} 44. Ra7+ {[%clk 00:09:08]} {[%emt
00:00:06]} Kf8 {[%clk 00:00:29]} 45. Bxg6 {[%clk 00:08:59]} {[%emt 00:00:11]}
Rxg6 {[%clk 00:00:26]} {[%emt 00:00:06]} 46. g5 {[%clk 00:08:38]} {[%emt
00:00:24]} hxg5 {[%clk 00:00:26]} {[%emt 00:00:03]} 47. Kf5 {[%clk 00:08:36]}
{[%emt 00:00:04]} Rg7 {[%clk 00:00:15]} {[%emt 00:00:15]} 48. Rxg7 {[%clk
00:08:36]} {[%emt 00:00:03]} Kxg7 {[%clk 00:00:16]} {[%emt 00:00:02]} 49. Ke6
{[%clk 00:08:37]} Bd8 {[%clk 00:00:15]} {[%emt 00:00:04]} 50. Kxd6 {[%clk
00:08:33]} {[%emt 00:00:07]} e4 {[%clk 00:00:17]} 51. Re3 {[%clk 00:08:34]}
{[%emt 00:00:02]} Ba5 {[%clk 00:00:07]} {[%emt 00:00:13]} 52. Rxe4 {[%clk
00:08:34]} {[%emt 00:00:03]} Bb4 {[%clk 00:00:08]} {[%emt 00:00:02]} 53. g4
{[%clk 00:08:35]} {[%emt 00:00:01]} 1-0

[Event "new tournament description"]
[Site "France"]
[Date "2018.12.28"]
[Round "1.2"]
[White "IINO JUBIN"]
[Black "GULIYEV"]
[Result "0-1"]
[TimeControl "15min+3sec"]
[WhiteElo "1590"]
[BlackElo "2563"]

1. e4 {[%clk 00:15:04]} {[%emt 00:00:01]} c5 {[%clk 00:15:04]} {[%emt
00:00:02]} 2. d4 {[%clk 00:15:05]} {[%emt 00:00:02]} cxd4 {[%clk 00:15:03]}
{[%emt 00:00:03]} 3. c3 {[%clk 00:15:06]} {[%emt 00:00:03]} dxc3 {[%clk
00:15:03]} {[%emt 00:00:03]} 4. Nxc3 {[%clk 00:15:07]} {[%emt 00:00:02]} d6
{[%clk 00:15:03]} {[%emt 00:00:02]} 5. Bc4 {[%clk 00:15:07]} {[%emt 00:00:03]}
Nc6 {[%clk 00:15:04]} {[%emt 00:00:02]} 6. Nf3 {[%clk 00:15:08]} {[%emt
00:00:03]} Nf6 {[%clk 00:15:04]} {[%emt 00:00:03]} 7. e5 {[%clk 00:14:50]}
{[%emt 00:00:21]} Nd7 {[%clk 00:12:46]} {[%emt 00:02:21]} 8. exd6 {[%clk
00:14:38]} {[%emt 00:00:15]} e6 {[%clk 00:12:40]} {[%emt 00:00:08]} 9. Nb5
{[%clk 00:13:19]} {[%emt 00:01:22]} Nb6 {[%clk 00:12:33]} {[%emt 00:00:11]} 10.
Nc7+ {[%clk 00:12:45]} {[%emt 00:00:37]} Kd7 {[%clk 00:12:34]} {[%emt
00:00:02]} 11. Bb3 {[%clk 00:12:32]} {[%emt 00:00:16]} Bxd6 {[%clk 00:12:21]}
{[%emt 00:00:16]} 12. Nxa8 {[%clk 00:12:25]} {[%emt 00:00:09]} Nxa8 {[%clk
00:12:21]} {[%emt 00:00:03]} 13. O-O {[%clk 00:11:59]} {[%emt 00:00:29]} Kc7
{[%clk 00:12:22]} {[%emt 00:00:02]} 14. Be3 {[%clk 00:11:30]} {[%emt 00:00:32]}
Kb8 {[%clk 00:12:06]} {[%emt 00:00:20]} 15. Qe2 {[%clk 00:10:52]} {[%emt
00:00:41]} Nc7 {[%clk 00:11:57]} {[%emt 00:00:11]} 16. Rfd1 {[%clk 00:10:40]}
{[%emt 00:00:15]} Qe7 {[%clk 00:11:43]} {[%emt 00:00:17]} 17. Nd4 {[%clk
00:09:58]} {[%emt 00:00:46]} Nxd4 {[%clk 00:11:28]} {[%emt 00:00:18]} 18. Bxd4
{[%clk 00:09:53]} {[%emt 00:00:08]} e5 {[%clk 00:11:28]} {[%emt 00:00:02]} 19.
Be3 {[%clk 00:09:22]} {[%emt 00:00:34]} f5 {[%clk 00:11:15]} {[%emt 00:00:17]}
20. Rac1 {[%clk 00:08:22]} {[%emt 00:01:04]} f4 {[%clk 00:11:05]} {[%emt
00:00:13]} 21. Bd2 {[%clk 00:08:11]} {[%emt 00:00:13]} e4 {[%clk 00:10:43]}
{[%emt 00:00:25]} 22. Ba5 {[%clk 00:06:43]} {[%emt 00:01:32]} f3 {[%clk
00:09:06]} {[%emt 00:01:40]} 23. Bxc7+ {[%clk 00:06:01]} {[%emt 00:00:44]} Bxc7
{[%clk 00:09:06]} {[%emt 00:00:03]} 24. Qc2 {[%clk 00:04:47]} {[%emt 00:01:18]}
Qe5 {[%clk 00:07:42]} {[%emt 00:01:27]} 25. g3 {[%clk 00:04:20]} {[%emt
00:00:30]} e3 {[%clk 00:07:42]} {[%emt 00:00:03]} 26. fxe3 {[%clk 00:03:25]}
{[%emt 00:00:58]} Bb6 {[%clk 00:07:39]} {[%emt 00:00:06]} 27. Re1 {[%clk
00:02:36]} {[%emt 00:00:51]} Bxe3+ {[%clk 00:07:37]} {[%emt 00:00:05]} 28. Kf1
{[%clk 00:02:22]} {[%emt 00:00:17]} Bh3+ {[%clk 00:07:37]} {[%emt 00:00:03]} 29.
Qg2 {[%clk 00:02:12]} {[%emt 00:00:13]} Bxg2# {[%clk 00:07:37]} {[%emt
00:00:03]} 0-1

[ePGN "0.1;DGT LiveChess/2.2.3"]

[Event "new tournament description"]
[Site "France"]
[Date "2018.12.28"]
[Round "2.1"]
[White "SCHNEIDER"]
[Black "GOZZOLI"]
[Result "0-1"]
[TimeControl "15min+3sec"]
[WhiteElo "1910"]
[BlackElo "2582"]

1. e4 {[%clk 00:15:03]} {[%emt 00:19:31]} Nf6 {[%clk 00:15:02]} {[%emt
00:00:12]} 2. e5 {[%clk 00:15:03]} {[%emt 00:00:04]} Nd5 {[%clk 00:15:03]} 3.
d4 {[%clk 00:15:04]} {[%emt 00:00:03]} d6 {[%clk 00:15:05]} 4. c4 {[%clk
00:14:53]} {[%emt 00:00:15]} Nb6 {[%clk 00:15:06]} {[%emt 00:00:02]} 5. exd6
{[%clk 00:14:46]} {[%emt 00:00:11]} cxd6 {[%clk 00:15:07]} {[%emt 00:00:02]} 6.
Nf3 {[%clk 00:14:41]} {[%emt 00:00:08]} g6 {[%clk 00:15:08]} {[%emt 00:00:02]}
7. b3 {[%clk 00:14:39]} {[%emt 00:00:05]} Bg7 {[%clk 00:15:09]} {[%emt
00:00:02]} 8. Bb2 {[%clk 00:14:40]} {[%emt 00:00:02]} O-O {[%clk 00:15:04]}
{[%emt 00:00:07]} 9. Be2 {[%clk 00:14:19]} {[%emt 00:00:24]} Bg4 {[%clk
00:15:02]} {[%emt 00:00:05]} 10. O-O {[%clk 00:14:06]} {[%emt 00:00:17]} d5
{[%clk 00:15:04]} {[%emt 00:00:02]} 11. c5 {[%clk 00:13:47]} {[%emt 00:00:22]}
N6d7 {[%clk 00:15:05]} {[%emt 00:00:01]} 12. Nc3 {[%clk 00:12:58]} {[%emt
00:00:52]} e6 {[%clk 00:14:55]} {[%emt 00:00:13]} 13. Qd2 {[%clk 00:12:30]}
{[%emt 00:00:32]} Nc6 {[%clk 00:14:21]} {[%emt 00:00:37]} 14. Nb5 {[%clk
00:11:52]} {[%emt 00:00:41]} b6 {[%clk 00:14:23]} {[%emt 00:00:01]} 15. cxb6
{[%clk 00:11:24]} {[%emt 00:00:31]} Qxb6 {[%clk 00:14:22]} {[%emt 00:00:03]} 16.
Ba3 {[%clk 00:10:41]} {[%emt 00:00:46]} Bxf3 {[%clk 00:12:07]} {[%emt
00:02:18]} 17. gxf3 {[%clk 00:08:14]} {[%emt 00:02:31]} Rfd8 {[%clk 00:12:07]}
{[%emt 00:00:02]} 18. Bd6 {[%clk 00:05:31]} {[%emt 00:02:46]} Nxd4 {[%clk
00:11:30]} {[%emt 00:00:40]} 19. Bc7 {[%clk 00:05:02]} {[%emt 00:00:33]} Qxb5
{[%clk 00:11:31]} {[%emt 00:00:02]} 20. Bxb5 {[%clk 00:04:21]} {[%emt
00:00:44]} Nxf3+ {[%clk 00:11:33]} {[%emt 00:00:01]} 21. Kg2 {[%clk 00:04:21]}
{[%emt 00:00:03]} Nxd2 {[%clk 00:11:35]} {[%emt 00:00:01]} 22. Bxd8 {[%clk
00:02:32]} {[%emt 00:01:52]} Nxf1 {[%clk 00:11:32]} {[%emt 00:00:06]} 23. Rxf1
{[%clk 00:02:34]} {[%emt 00:00:02]} Rxd8 {[%clk 00:11:34]} {[%emt 00:00:01]}
0-1

[Event "new tournament description"]
[Site "France"]
[Date "2018.12.28"]
[Round "2.2"]
[White "GULIYEV"]
[Black "MISSLIN"]
[Result "1-0"]
[TimeControl "15min+3sec"]
[WhiteElo "2563"]
[BlackElo "1910"]

1. e4 {[%clk 00:15:01]} {[%emt 00:00:04]} d5 {[%clk 00:15:05]} {[%emt
00:00:02]} 2. exd5 {[%clk 00:15:02]} {[%emt 00:00:02]} Nf6 {[%clk 00:15:06]}
{[%emt 00:00:01]} 3. d4 {[%clk 00:15:03]} {[%emt 00:00:02]} Bg4 {[%clk
00:15:07]} {[%emt 00:00:02]} 4. f3 {[%clk 00:15:05]} {[%emt 00:00:02]} Bf5
{[%clk 00:15:09]} {[%emt 00:00:01]} 5. Bb5+ {[%clk 00:15:06]} {[%emt 00:00:02]}
Nbd7 {[%clk 00:15:08]} {[%emt 00:00:05]} 6. c4 {[%clk 00:15:07]} {[%emt
00:00:01]} a6 {[%clk 00:15:08]} {[%emt 00:00:03]} 7. Ba4 {[%clk 00:15:09]} e6
{[%clk 00:14:51]} {[%emt 00:00:20]} 8. dxe6 {[%clk 00:15:06]} {[%emt 00:00:06]}
Bxe6 {[%clk 00:14:52]} {[%emt 00:00:02]} 9. d5 {[%clk 00:15:04]} {[%emt
00:00:05]} Bf5 {[%clk 00:14:51]} {[%emt 00:00:04]} 10. Nc3 {[%clk 00:14:49]}
{[%emt 00:00:18]} Bc5 {[%clk 00:14:42]} {[%emt 00:00:12]} 11. Qe2+ {[%clk
00:14:43]} {[%emt 00:00:09]} Qe7 {[%clk 00:13:39]} {[%emt 00:01:06]} 12. Bf4
{[%clk 00:14:42]} {[%emt 00:00:03]} O-O-O {[%clk 00:13:20]} {[%emt 00:00:23]}
13. Qxe7 {[%clk 00:14:38]} {[%emt 00:00:07]} Bxe7 {[%clk 00:13:21]} {[%emt
00:00:03]} 14. O-O-O {[%clk 00:14:29]} {[%emt 00:00:11]} Nc5 {[%clk 00:13:14]}
{[%emt 00:00:11]} 15. Bc2 {[%clk 00:14:30]} {[%emt 00:00:02]} Bxc2 {[%clk
00:12:28]} {[%emt 00:00:49]} 16. Kxc2 {[%clk 00:14:31]} {[%emt 00:00:02]} Nh5
{[%clk 00:10:53]} {[%emt 00:01:38]} 17. Nge2 {[%clk 00:14:24]} {[%emt
00:00:10]} Rhe8 {[%clk 00:10:11]} {[%emt 00:00:45]} 18. Rhe1 {[%clk 00:13:32]}
{[%emt 00:00:55]} Nxf4 {[%clk 00:09:06]} {[%emt 00:01:08]} 19. Nxf4 {[%clk
00:13:32]} {[%emt 00:00:02]} Bg5 {[%clk 00:08:25]} {[%emt 00:00:44]} 20. Nd3
{[%clk 00:13:24]} {[%emt 00:00:11]} Nxd3 {[%clk 00:07:38]} {[%emt 00:00:51]} 21.
Kxd3 {[%clk 00:13:24]} {[%emt 00:00:02]} Bf6 {[%clk 00:07:26]} {[%emt
00:00:15]} 22. Re4 {[%clk 00:13:07]} {[%emt 00:00:20]} Re6 {[%clk 00:05:42]}
{[%emt 00:01:47]} 23. Rde1 {[%clk 00:12:54]} {[%emt 00:00:15]} Red6 {[%clk
00:05:41]} {[%emt 00:00:05]} 24. Re8 {[%clk 00:12:37]} {[%emt 00:00:20]} Bxc3
{[%clk 00:05:09]} {[%emt 00:00:36]} 25. Kxc3 {[%clk 00:12:37]} {[%emt
00:00:02]} Rg6 {[%clk 00:04:21]} {[%emt 00:00:51]} 26. g3 {[%clk 00:12:29]}
{[%emt 00:00:10]} Rh6 {[%clk 00:04:07]} {[%emt 00:00:18]} 27. R8e7 {[%clk
00:12:26]} {[%emt 00:00:06]} Rd7 {[%clk 00:03:54]} {[%emt 00:00:16]} 28. h4
{[%clk 00:12:14]} {[%emt 00:00:14]} Rf6 {[%clk 00:03:52]} {[%emt 00:00:05]} 29.
Re8+ {[%clk 00:11:59]} {[%emt 00:00:18]} Rd8 {[%clk 00:03:53]} {[%emt
00:00:02]} 30. Rxd8+ {[%clk 00:12:00]} {[%emt 00:00:02]} Kxd8 {[%clk 00:03:55]}
{[%emt 00:00:01]} 31. Re3 {[%clk 00:12:00]} {[%emt 00:00:02]} Kd7 {[%clk
00:03:53]} {[%emt 00:00:07]} 32. Kd4 {[%clk 00:12:01]} {[%emt 00:00:02]} c6
{[%clk 00:03:40]} {[%emt 00:00:16]} 33. dxc6+ {[%clk 00:11:57]} {[%emt
00:00:06]} Kxc6 {[%clk 00:03:28]} {[%emt 00:00:15]} 34. f4 {[%clk 00:11:58]}
{[%emt 00:00:01]} Rd6+ {[%clk 00:03:22]} {[%emt 00:00:08]} 35. Kc3 {[%clk
00:11:59]} {[%emt 00:00:03]} b5 {[%clk 00:02:16]} {[%emt 00:01:10]} 36. cxb5+
{[%clk 00:11:51]} {[%emt 00:00:11]} axb5 {[%clk 00:02:15]} {[%emt 00:00:04]} 37.
a3 {[%clk 00:11:52]} {[%emt 00:00:01]} Rd1 {[%clk 00:01:53]} {[%emt 00:00:25]}
38. Rd3 {[%clk 00:11:46]} {[%emt 00:00:09]} Re1 {[%clk 00:01:27]} {[%emt
00:00:29]} 39. Kd4 {[%clk 00:11:45]} {[%emt 00:00:03]} Re6 {[%clk 00:01:23]}
{[%emt 00:00:08]} 40. Rc3+ {[%clk 00:11:43]} {[%emt 00:00:05]} Kb6 {[%clk
00:01:25]} {[%emt 00:00:01]} 41. f5 {[%clk 00:11:39]} {[%emt 00:00:07]} Rd6+
{[%clk 00:01:21]} {[%emt 00:00:07]} 42. Ke5 {[%clk 00:11:38]} {[%emt 00:00:03]}
Rd2 {[%clk 00:01:20]} {[%emt 00:00:04]} 43. b4 {[%clk 00:11:39]} {[%emt
00:00:03]} f6+ {[%clk 00:01:12]} {[%emt 00:00:12]} 44. Ke6 {[%clk 00:11:38]}
{[%emt 00:00:03]} Rf2 {[%clk 00:00:56]} {[%emt 00:00:20]} 45. Rd3 {[%clk
00:11:35]} {[%emt 00:00:06]} g6 {[%clk 00:00:45]} {[%emt 00:00:14]} 46. g4
{[%clk 00:11:29]} {[%emt 00:00:09]} Rf4 {[%clk 00:00:42]} {[%emt 00:00:06]} 47.
Rd6+ {[%clk 00:11:16]} {[%emt 00:00:16]} Kc7 {[%clk 00:00:39]} {[%emt
00:00:06]} 48. Rd7+ {[%clk 00:11:16]} {[%emt 00:00:02]} Kb6 {[%clk 00:00:40]}
{[%emt 00:00:02]} 49. Rxh7 {[%clk 00:10:41]} {[%emt 00:00:37]} Rxg4 {[%clk
00:00:40]} {[%emt 00:00:03]} 50. Kxf6 {[%clk 00:10:39]} {[%emt 00:00:06]} gxf5
{[%clk 00:00:36]} {[%emt 00:00:07]} 51. Kxf5 {[%clk 00:10:39]} {[%emt
00:00:03]} Rg3 {[%clk 00:00:38]} {[%emt 00:00:01]} 52. Rh6+ {[%clk 00:10:36]}
{[%emt 00:00:04]} Kb7 {[%clk 00:00:35]} {[%emt 00:00:09]} 53. Rg6 {[%clk
00:10:36]} {[%emt 00:00:03]} Rxa3 {[%clk 00:00:36]} {[%emt 00:00:03]} 54. Rg4
{[%clk 00:10:36]} {[%emt 00:00:01]} Rh3 {[%clk 00:00:31]} {[%emt 00:00:09]} 55.
Kg5 {[%clk 00:10:37]} {[%emt 00:00:02]} Kc6 {[%clk 00:00:31]} {[%emt 00:00:03]}
56. h5 {[%clk 00:10:37]} {[%emt 00:00:01]} Rc3 {[%clk 00:00:25]} {[%emt
00:00:10]} 57. h6 {[%clk 00:10:38]} {[%emt 00:00:02]} Rc4 {[%clk 00:00:26]}
{[%emt 00:00:03]} 58. h7 {[%clk 00:10:38]} {[%emt 00:00:02]} Kd5 {[%emt
00:00:07]} 1-0

[ePGN "0.1;DGT LiveChess/2.2.3"]

[Event "new tournament description"]
[Site "France"]
[Date "2018.12.28"]
[Round "3.1"]
[White "GOZZOLI"]
[Black "ENGELMANN"]
[Result "1-0"]
[TimeControl "15min+3sec"]
[WhiteElo "2582"]
[BlackElo "1966"]

1. d4 {[%clk 00:15:03]} {[%emt 00:00:02]} Nf6 {[%clk 00:15:04]} {[%emt
00:00:02]} 2. c4 {[%clk 00:15:04]} {[%emt 00:00:02]} g6 {[%clk 00:15:00]}
{[%emt 00:00:07]} 3. Nc3 {[%clk 00:15:05]} {[%emt 00:00:02]} Bg7 {[%clk
00:15:01]} {[%emt 00:00:03]} 4. e4 {[%clk 00:14:57]} {[%emt 00:00:11]} d6
{[%clk 00:14:54]} {[%emt 00:00:11]} 5. Nf3 {[%clk 00:14:40]} {[%emt 00:00:20]}
O-O {[%clk 00:14:38]} {[%emt 00:00:19]} 6. Be2 {[%clk 00:14:42]} e5 {[%clk
00:14:22]} {[%emt 00:00:21]} 7. O-O {[%clk 00:14:41]} {[%emt 00:00:03]} Nc6
{[%clk 00:14:21]} {[%emt 00:00:04]} 8. d5 {[%clk 00:14:42]} {[%emt 00:00:02]}
Ne7 {[%clk 00:14:08]} {[%emt 00:00:16]} 9. Nh4 {[%clk 00:14:42]} {[%emt
00:00:02]} Nd7 {[%clk 00:13:01]} {[%emt 00:01:10]} 10. g3 {[%clk 00:14:42]}
{[%emt 00:00:03]} a5 {[%clk 00:12:52]} {[%emt 00:00:13]} 11. Be3 {[%clk
00:14:43]} {[%emt 00:00:02]} f5 {[%clk 00:12:21]} {[%emt 00:00:34]} 12. exf5
{[%clk 00:14:44]} {[%emt 00:00:02]} gxf5 {[%clk 00:11:43]} {[%emt 00:00:41]} 13.
f4 {[%clk 00:14:46]} {[%emt 00:00:01]} Ng6 {[%clk 00:11:01]} {[%emt 00:00:45]}
14. Ng2 {[%clk 00:14:46]} {[%emt 00:00:01]} Nf6 {[%clk 00:10:32]} {[%emt
00:00:33]} 15. h3 {[%clk 00:13:41]} {[%emt 00:01:07]} Kh8 {[%clk 00:09:43]}
{[%emt 00:00:53]} 16. Kh2 {[%clk 00:13:41]} {[%emt 00:00:03]} Rg8 {[%clk
00:09:08]} {[%emt 00:00:38]} 17. Bd3 {[%clk 00:12:48]} {[%emt 00:00:56]} e4
{[%clk 00:07:36]} {[%emt 00:01:36]} 18. Be2 {[%clk 00:12:48]} {[%emt 00:00:02]}
Bd7 {[%clk 00:07:05]} {[%emt 00:00:34]} 19. Rc1 {[%clk 00:12:46]} {[%emt
00:00:06]} b6 {[%clk 00:06:58]} {[%emt 00:00:10]} 20. Bd4 {[%clk 00:11:45]}
{[%emt 00:01:04]} Ne7 {[%clk 00:06:48]} {[%emt 00:00:13]} 21. Qd2 {[%clk
00:10:56]} {[%emt 00:00:52]} Be8 {[%clk 00:06:40]} {[%emt 00:00:12]} 22. Nd1
{[%clk 00:10:55]} {[%emt 00:00:03]} Bg6 {[%clk 00:05:58]} {[%emt 00:00:45]} 23.
Nde3 {[%clk 00:10:55]} {[%emt 00:00:03]} Qf8 {[%clk 00:05:10]} {[%emt
00:00:51]} 24. g4 {[%clk 00:09:45]} {[%emt 00:01:12]} Nd7 {[%clk 00:05:02]}
{[%emt 00:00:11]} 25. g5 {[%clk 00:09:46]} {[%emt 00:00:02]} Bxd4 {[%clk
00:04:52]} {[%emt 00:00:13]} 26. Qxd4+ {[%clk 00:09:47]} {[%emt 00:00:02]} Qg7
{[%clk 00:04:54]} 27. Nc2 {[%clk 00:09:29]} {[%emt 00:00:21]} Nc5 {[%clk
00:04:26]} {[%emt 00:00:30]} 28. h4 {[%clk 00:09:27]} {[%emt 00:00:05]} Qxd4
{[%clk 00:04:08]} {[%emt 00:00:22]} 29. Nxd4 {[%clk 00:09:29]} {[%emt
00:00:01]} h5 {[%clk 00:04:01]} {[%emt 00:00:10]} 30. Ne3 {[%clk 00:09:22]}
{[%emt 00:00:09]} Rgf8 {[%clk 00:03:28]} {[%emt 00:00:37]} 31. b3 {[%clk
00:09:22]} {[%emt 00:00:02]} Kg7 {[%clk 00:03:05]} {[%emt 00:00:27]} 32. Kg2
{[%clk 00:09:05]} {[%emt 00:00:19]} Ra7 {[%clk 00:02:43]} {[%emt 00:00:26]} 33.
Kf2 {[%clk 00:08:56]} {[%emt 00:00:12]} Raa8 {[%clk 00:02:44]} {[%emt
00:00:02]} 34. Ke1 {[%emt 00:00:02]} Ra7 {[%emt 00:00:01]} 35. Kd2 {[%clk
00:08:58]} Raa8 {[%clk 00:02:49]} 36. Ra1 {[%clk 00:08:42]} {[%emt 00:00:20]}
Be8 {[%clk 00:02:21]} {[%emt 00:00:31]} 37. a3 {[%clk 00:08:31]} {[%emt
00:00:14]} Bd7 {[%clk 00:02:04]} {[%emt 00:00:20]} 38. b4 {[%clk 00:08:32]}
{[%emt 00:00:02]} axb4 {[%clk 00:02:02]} {[%emt 00:00:05]} 39. axb4 {[%clk
00:08:34]} Nb7 {[%clk 00:01:59]} {[%emt 00:00:05]} 40. Kc3 {[%clk 00:08:20]}
{[%emt 00:00:17]} Kg6 {[%clk 00:01:32]} {[%emt 00:00:31]} 41. Rh1 {[%clk
00:08:14]} {[%emt 00:00:08]} c5 {[%clk 00:01:11]} {[%emt 00:00:25]} 42. dxc6
{[%clk 00:08:06]} {[%emt 00:00:11]} Bxc6 {[%clk 00:01:06]} {[%emt 00:00:08]} 43.
Nxc6 {[%clk 00:07:35]} {[%emt 00:00:35]} Nxc6 {[%clk 00:01:05]} {[%emt
00:00:03]} 44. Rhd1 {[%clk 00:07:37]} {[%emt 00:00:01]} Rfc8 {[%clk 00:00:49]}
{[%emt 00:00:19]} 45. Nd5 {[%clk 00:05:55]} {[%emt 00:01:45]} Rxa1 {[%clk
00:00:29]} 46. Rxa1 {[%clk 00:05:58]} b5 {[%clk 00:00:23]} {[%emt 00:00:09]} 47.
cxb5 {[%clk 00:05:53]} {[%emt 00:00:07]} Ne7+ {[%clk 00:00:15]} {[%emt
00:00:11]} 48. Kd4 {[%clk 00:05:55]} Nxd5 {[%clk 00:00:10]} {[%emt 00:00:09]}
49. Kxd5 {[%clk 00:05:57]} {[%emt 00:00:01]} Rc2 {[%clk 00:00:10]} {[%emt
00:00:03]} 50. Bd1 {[%clk 00:05:48]} {[%emt 00:00:12]} Rd2+ {[%clk 00:00:11]}
{[%emt 00:00:02]} 51. Kc6 {[%clk 00:05:49]} Nd8+ {[%clk 00:00:14]} {[%emt
00:00:01]} 52. Kd7 {[%clk 00:05:51]} {[%emt 00:00:01]} Nf7 {[%clk 00:00:16]} 53.
b6 {[%clk 00:05:51]} {[%emt 00:00:03]} 1-0